bitfinex/quotes_ETHUSD_20250625
["timestamp","ask_amount","ask_price","bid_price","bid_amount"]
[1750867974955,0.2072,2410.7,2410.3,0.9795]
[1750867975639,0.2072,2410.7,2410.3,5.12828878]
[1750867975837,4.14862292,2410.5,2410.3,0.9795]
[1750867976465,4.1485597,2410.5,2410.1,1.5403]
[1750867976640,4.35558222,2410.6,2410.1,5.68950054]
[1750867976840,4.35558222,2410.6,2410.1,6.6733983]
[1750867977151,0.2072,2410.6,2410.2,4.14902654]
[1750867977548,0.2072,2410.6,2410.2,4.14897211]
[1750867978269,4.35566977,2410.6,2410.1,6.6733582]
[1750867979070,0.2072,2410.6,2410.2,4.14900771]
[1750867979267,7.043,2410.5,2410.1,6.67337413]
[1750867979571,7.043,2410.5,2410.1,0.2072]
[1750867979760,7.043,2410.5,2409.8,1.0352]
[1750867979761,4.35614536,2410.3,2409.8,1.0352]
[1750867979964,4.35614536,2410.3,2409.9,0.55]
[1750867980164,6.27914536,2410.3,2409.9,0.55]
[1750867980361,2.1302,2410.3,2409.9,4.69947053]
[1750867980564,2.1302,2410.3,2409.9,5.68790286]
[1750867980965,2.1302,2410.3,2410.0,4.14933961]
[1750867981472,0.7662,2411.1,2410.3,0.55]
[1750867981680,10.0,2410.9,2410.3,0.55]
[1750867981972,4.14843422,2410.6,2410.2,0.8077]
[1750867982280,0.2072,2410.5,2410.2,0.8077]
[1750867982473,4.35572184,2410.5,2410.2,0.8077]
[1750867982646,0.2072,2410.5,2410.2,0.8077]
[1750867984478,0.2072,2410.5,2410.0,0.2072]
[1750867984479,1.915,2410.4,2410.0,0.2072]
[1750867984664,4.14932203,2410.1,2409.9,0.804]
[1750867984872,4.14941258,2410.0,2409.7,1.0112]
[1750867985066,4.14941258,2410.0,2409.8,0.55]
[1750867985280,4.14947681,2410.0,2409.7,1.0112]
[1750867985583,0.2072,2410.0,2409.7,4.95389233]
[1750867985878,4.35662699,2410.0,2409.7,0.804]
[1750867986387,4.14929867,2410.1,2409.7,0.804]
[1750867986549,4.14929867,2410.1,2409.5,14.93288386]
[1750867986550,0.2072,2409.8,2409.5,14.93288386]
[1750867986750,0.2072,2409.8,2409.5,16.86194444]
[1750867986981,0.2072,2409.8,2409.5,0.7827]
[1750867987167,0.2072,2409.8,2409.5,4.93291613]
[1750867987682,4.35699929,2409.8,2409.5,0.7827]
[1750867988177,0.2072,2409.8,2409.5,0.7827]
[1750867989064,0.2072,2409.8,2409.6,4.15000048]
[1750867989275,0.2072,2409.8,2409.5,0.7827]
[1750867989492,4.35704354,2409.8,2409.5,0.7827]
[1750867989655,0.2072,2409.8,2409.5,4.9329319]
[1750867989864,4.35705145,2409.8,2409.5,0.7827]
[1750867990188,4.1500664,2409.6,2409.2,1.307]
[1750867990364,0.2072,2409.7,2409.2,0.9642]
[1750867990691,4.14962185,2409.9,2409.3,4.1504528]
[1750867990851,0.2072,2409.7,2409.3,4.1504528]
[1750867991052,0.2072,2409.7,2409.4,4.15035841]
[1750867991263,0.2072,2409.7,2409.3,4.70048547]
[1750867991878,0.2072,2409.7,2409.4,4.15040179]
[1750867992114,0.2072,2409.7,2409.3,5.68200439]
[1750867992422,0.2072,2409.7,2409.3,4.70046566]
[1750867992624,4.35710157,2409.7,2409.3,4.70046566]
[1750867993002,4.15012875,2409.6,2409.3,0.55]
[1750867993390,2.1222,2409.7,2409.3,0.55]
[1750867993593,2.1222,2409.7,2409.4,4.15036589]
[1750867993987,7.8,2410.6,2409.6,5.4779664]
[1750867994193,7.8,2410.6,2410.0,0.8148]
[1750867994194,0.2072,2410.1,2410.0,0.8148]
[1750867994593,0.2072,2410.1,2409.8,4.96435259]
[1750867994793,0.2072,2410.1,2410.0,4.69937759]
[1750867994995,0.2072,2410.4,2409.9,0.7572]
[1750867995229,0.2072,2410.4,2410.2,0.8232]
[1750867995442,0.2072,2410.4,2410.3,4.14886113]
[1750867995933,0.2072,2410.4,2410.2,0.8232]
[1750867998030,0.2072,2410.4,2410.2,4.97211039]
[1750867998333,0.2072,2410.4,2410.2,0.8232]
[1750868000131,0.2072,2410.4,2410.2,4.97213522]
[1750868000298,0.2072,2410.4,2410.2,5.94148579]
[1750868001149,0.2072,2410.4,2410.2,1.79255057]
[1750868001357,0.2072,2410.4,2410.2,0.8232]
[1750868002032,0.2072,2410.4,2410.2,4.97219954]
[1750868002749,0.2072,2410.4,2410.2,0.8232]
[1750868003737,0.2072,2410.4,2410.2,4.97221972]
[1750868003935,0.2072,2410.4,2410.2,0.8232]
[1750868005267,0.7842,2411.0,2410.3,0.55]
[1750868005418,0.2072,2410.7,2410.5,4.14843566]
[1750868006645,1.915,2410.9,2410.6,0.8012]
[1750868006976,1.915,2410.9,2410.6,4.94951917]
[1750868007315,1.915,2410.9,2410.7,4.14816382]
[1750868007648,1.915,2410.9,2410.6,0.8012]
[1750868007836,1.915,2410.9,2410.8,4.14800066]
[1750868008012,1.915,2410.9,2410.8,5.19292073]
[1750868009165,8.945,2411.5,2411.3,4.14699452]
[1750868009449,2.1222,2411.5,2411.3,4.14699452]
[1750868009657,2.1222,2411.5,2411.4,4.14696856]
[1750868010252,14.92766042,2412.2,2411.3,0.55]
[1750868010253,8.944,2411.9,2411.3,0.55]
[1750868010457,0.2072,2411.7,2411.3,0.7572]
[1750868010645,0.2072,2411.7,2411.6,4.14661304]
[1750868011756,0.2072,2411.7,2411.5,4.14677922]
[1750868012144,0.2072,2411.7,2411.6,4.14662464]
[1750868012352,0.2072,2411.7,2411.6,4.94332464]
[1750868013054,1.915,2411.9,2411.8,4.14628078]
[1750868013252,2.1222,2411.9,2411.8,4.14628078]
[1750868013564,10.0,2412.4,2411.8,4.14628078]
[1750868013565,0.2072,2412.5,2412.1,4.14567525]
[1750868014257,4.35228207,2412.5,2412.0,4.90306201]
[1750868014461,4.14537664,2412.4,2411.9,0.55]
[1750868014754,0.2072,2412.3,2411.9,0.2072]
[1750868014958,4.14524954,2412.4,2411.6,4.14651487]
[1750868015131,4.14531316,2412.4,2411.9,4.14610887]
[1750868015349,0.2072,2412.1,2411.9,4.14610887]
[1750868015754,0.2072,2412.1,2412.0,4.14593698]
[1750868015957,0.2072,2412.1,2411.9,4.14602749]
[1750868016652,0.2072,2412.1,2412.0,4.14593698]
[1750868016859,0.2072,2412.1,2411.9,4.14600744]
[1750868017356,0.2072,2412.1,2412.0,4.14593698]
[1750868017535,0.2072,2412.1,2411.9,4.14601846]
[1750868017938,0.2072,2412.1,2411.8,4.69626721]
[1750868018538,0.2072,2412.1,2411.9,4.14610887]
[1750868018931,1.0361,2412.1,2411.8,1.10053005]
[1750868020668,0.2072,2412.1,2411.8,5.24678586]
[1750868020832,0.2072,2412.1,2411.5,0.55]
[1750868020833,4.14627638,2411.9,2411.5,0.55]
[1750868021032,4.35347638,2411.9,2411.5,0.7572]
[1750868021561,4.14629658,2411.8,2411.5,0.7572]
[1750868021743,0.2072,2411.9,2411.5,0.2072]
[1750868021744,4.14652632,2411.7,2411.5,0.2072]
[1750868022372,0.2072,2411.5,2411.1,0.2072]
[1750868022669,0.7884,2411.4,2410.5,0.7817]
[1750868022961,0.2072,2411.0,2410.7,0.2072]
[1750868023132,0.2072,2411.0,2410.7,1.13576128]
[1750868023348,0.2072,2411.0,2410.7,5.28388963]
[1750868023572,0.2072,2411.0,2410.8,0.55]
[1750868023781,0.2072,2411.2,2410.8,4.14792083]
[1750868024150,0.2072,2411.2,2410.8,4.14794313]
[1750868025255,0.2072,2411.2,2410.8,0.55]
[1750868025256,4.35451483,2411.2,2410.8,0.55]
[1750868025573,0.2072,2411.2,2410.8,1.51035665]
[1750868025881,0.2072,2411.2,2410.8,5.65827858]
[1750868026777,0.2072,2411.2,2410.8,1.51035665]
[1750868026997,4.14756231,2411.1,2410.8,0.55]
[1750868027147,4.14766832,2411.0,2410.7,0.2072]
[1750868027347,4.35486832,2411.0,2410.7,0.2072]
[1750868027548,0.2072,2411.0,2410.7,0.2072]
[1750868028054,4.3548913,2411.0,2410.7,0.2072]
[1750868028260,0.2072,2411.0,2410.7,0.2072]
[1750868028458,0.2072,2411.0,2410.7,1.13577303]
[1750868028670,0.2072,2410.7,2410.3,1.0218]
[1750868028869,0.2072,2410.7,2410.4,4.14867828]
[1750868029073,0.2072,2410.7,2410.4,0.55]
[1750868029459,0.2072,2410.7,2410.4,4.6985929]
[1750868030283,0.2072,2410.7,2410.4,0.55]
[1750868030680,4.35540165,2410.7,2410.3,1.0218]
[1750868030890,4.14851762,2410.5,2410.3,1.72427525]
[1750868031090,4.14851762,2410.5,2409.9,4.14948912]
[1750868031091,4.14884331,2410.4,2409.9,4.14953922]
[1750868031276,4.14893842,2410.3,2409.9,0.2072]
[1750868031454,0.2072,2410.4,2409.9,0.2072]
[1750868031999,4.14886113,2410.3,2409.7,0.7518]
[1750868032290,4.14886113,2410.3,2409.8,0.55]
[1750868032291,4.35642374,2410.1,2409.8,0.55]
[1750868032761,0.2072,2410.1,2409.8,0.55]
[1750868033386,0.2072,2410.1,2409.8,4.6997129]
[1750868033594,0.2072,2410.1,2409.8,0.55]
[1750868033772,0.2072,2410.1,2409.8,4.69967462]
[1750868034592,0.2072,2410.1,2409.9,4.14952949]
[1750868034796,0.2072,2410.1,2410.0,4.14937759]
[1750868035094,0.7514,2410.4,2410.0,4.90655571]
[1750868035095,0.2072,2410.4,2410.0,4.90655571]
[1750868035261,2.1132,2410.6,2410.3,4.14886113]
[1750868035458,2.1132,2410.6,2410.5,4.1485169]
[1750868035766,2.1132,2410.6,2410.4,4.14859445]
[1750868035968,0.2072,2410.6,2410.2,0.2072]
[1750868036194,0.2072,2410.8,2410.5,4.1485169]
[1750868036361,0.2072,2410.8,2410.4,4.35579518]
[1750868036561,0.2072,2410.8,2410.4,0.2072]
[1750868036562,4.35523031,2410.8,2410.4,0.2072]
[1750868036895,4.14828215,2410.7,2410.4,0.2072]
[1750868037187,0.2072,2410.8,2410.4,4.35584197]
[1750868037493,0.2072,2410.8,2410.4,5.03264785]
[1750868037670,0.2072,2410.8,2410.4,0.88400588]
[1750868037873,0.2072,2410.8,2410.4,0.2072]
[1750868038173,4.35541502,2410.7,2410.3,0.55]
[1750868038712,4.35538809,2410.7,2410.2,4.3561538]
[1750868038870,0.2072,2410.7,2410.3,0.55]
[1750868039181,0.2072,2410.7,2410.3,4.69878486]
[1750868039573,0.2072,2410.7,2410.3,1.53442387]
[1750868039807,0.2072,2410.7,2410.3,5.68325133]
[1750868040109,0.2072,2410.7,2410.4,4.14868552]
[1750868040404,0.2072,2410.7,2410.3,5.68326461]
[1750868040698,0.2072,2410.7,2410.3,1.53442387]
[1750868040900,0.2072,2410.8,2410.7,4.14817272]
[1750868041279,1.906,2410.9,2410.8,4.14800066]
[1750868042002,1.906,2410.9,2410.7,0.55]
[1750868042208,1.906,2410.9,2410.8,4.14800066]
[1750868042706,1.906,2410.9,2410.7,4.69808374]
[1750868042916,1.906,2410.9,2410.8,4.14800066]
[1750868043112,1.906,2410.9,2410.7,4.69809517]
[1750868043401,1.906,2410.9,2410.7,4.69814982]
[1750868043572,1.906,2410.9,2410.8,4.14800066]
[1750868044523,1.906,2410.9,2410.7,4.69808747]
[1750868045212,1.906,2410.9,2410.7,0.55]
[1750868046135,1.906,2410.9,2410.8,4.14800066]
[1750868046833,1.906,2410.9,2410.8,4.9949919]
[1750868047052,1.897,2411.4,2411.0,0.7654]
[1750868047224,0.2072,2411.3,2411.2,4.14719716]
[1750868047589,1.897,2411.4,2411.3,4.14714054]
[1750868048029,1.897,2411.4,2411.3,4.69714054]
[1750868048714,1.897,2411.4,2411.3,0.55]
[1750868048929,1.897,2411.4,2411.3,4.69714054]
[1750868049433,1.897,2411.4,2411.3,0.55]
[1750868050297,1.897,2411.4,2411.3,4.69714054]
[1750868051300,1.897,2411.4,2411.3,5.60230249]
[1750868051503,10.781,2411.7,2411.5,4.14679659]
[1750868051852,10.781,2411.7,2411.6,4.14662464]
[1750868052212,10.781,2411.7,2411.5,4.14671287]
[1750868052846,10.781,2411.7,2411.4,4.97568491]
[1750868053016,10.781,2411.7,2411.4,0.8288]
[1750868053217,2.1042,2411.8,2411.4,4.97573774]
[1750868053525,2.1042,2411.8,2411.5,0.47471946]
[1750868053731,6.25049197,2411.8,2411.5,0.47471946]
[1750868053939,6.25049197,2411.8,2411.4,0.8288]
[1750868054244,6.25049106,2411.8,2411.4,0.8288]
[1750868054429,2.1042,2411.8,2411.4,4.97565723]
[1750868054630,6.25050789,2411.8,2411.4,0.8288]
[1750868055454,4.14645925,2411.7,2411.4,0.8288]
[1750868055965,0.7687,2411.7,2411.3,0.7572]
[1750868056134,0.7687,2411.7,2411.2,0.8116]
[1750868056333,0.7687,2411.7,2411.1,0.2072]
[1750868056334,4.3540744,2411.5,2411.1,0.2072]
[1750868056529,0.2072,2411.5,2411.1,4.35460751]
[1750868056938,0.7567,2411.4,2410.8,0.84699124]
[1750868057163,0.7567,2411.4,2410.6,0.7562]
[1750868057164,0.2072,2411.0,2410.7,4.14814093]
[1750868058469,0.2072,2411.0,2410.7,0.55]
[1750868058667,4.35485865,2411.0,2410.7,0.55]
[1750868058872,0.2072,2411.0,2410.7,0.55]
[1750868059071,0.2072,2411.0,2410.7,4.69817154]
[1750868060172,0.2072,2411.0,2410.8,4.14797341]
[1750868061241,0.2072,2411.0,2410.7,4.6980913]
[1750868063073,0.2072,2411.0,2410.8,4.14799087]
[1750868064076,0.2072,2411.0,2410.7,4.69810117]
[1750868064371,0.2072,2411.0,2410.8,4.14798805]
[1750868064554,0.2072,2411.0,2410.8,5.05333558]
[1750868064753,0.2072,2411.0,2410.9,4.14782861]
[1750868064952,0.7567,2411.4,2411.1,4.14741748]
[1750868065144,1.897,2411.5,2411.1,4.14741748]
[1750868065349,0.2072,2411.4,2411.0,4.69759665]
[1750868065575,4.35417832,2411.4,2411.0,0.55]
[1750868065752,4.14697832,2411.4,2410.9,4.91295499]
[1750868065958,0.2072,2411.2,2410.9,4.91295499]
[1750868066551,0.2072,2411.2,2410.9,4.14781101]
[1750868067167,0.2072,2411.2,2411.0,4.14764182]
[1750868067775,0.2072,2411.2,2411.0,0.9200896]
[1750868067974,0.2072,2411.4,2411.0,4.14756149]
[1750868068393,4.35426842,2411.4,2410.9,4.90495594]
[1750868068889,4.14748455,2411.1,2410.6,4.14826378]
[1750868069090,6.25189647,2411.0,2410.6,0.2072]
[1750868069400,2.1042,2411.0,2410.7,4.69801404]
[1750868069688,2.1042,2411.0,2410.8,4.14790482]
[1750868069891,2.1042,2411.0,2410.9,4.14782861]
[1750868070083,1.897,2411.0,2410.9,4.14782861]
[1750868070484,1.897,2411.0,2410.8,4.14791844]
[1750868070782,1.897,2411.0,2410.9,4.14782861]
[1750868071089,2.1042,2411.2,2410.9,4.14782861]
[1750868071493,2.1042,2411.2,2410.9,4.14774636]
[1750868071895,0.8172,2411.4,2410.9,5.60299664]
[1750868072066,0.8172,2411.4,2411.1,4.69744778]
[1750868072067,1.897,2411.3,2411.1,4.69744778]
[1750868073365,1.897,2411.3,2411.2,4.14731254]
[1750868074261,1.897,2411.3,2411.1,4.6974067]
[1750868076902,1.897,2411.3,2411.1,0.55]
[1750868078294,1.897,2411.3,2411.1,4.69747722]
[1750868078491,1.897,2411.3,2411.1,0.55]
[1750868078895,4.14704735,2411.4,2410.9,4.69773761]
[1750868079068,0.2072,2411.2,2410.9,4.69773761]
[1750868079272,0.2072,2411.2,2411.0,4.14764085]
[1750868079490,0.2072,2411.2,2410.9,4.69774101]
[1750868080783,0.2072,2411.2,2410.9,4.69774686]
[1750868080979,0.2072,2411.2,2410.9,0.55]
[1750868081577,0.2072,2411.2,2410.8,4.35513471]
[1750868081876,0.2072,2411.2,2410.8,6.33566308]
[1750868082077,4.97550152,2411.3,2410.7,0.55]
[1750868082293,0.2072,2411.0,2410.7,0.55]
[1750868082499,2.0952,2411.0,2410.7,0.55]
[1750868082885,2.0952,2411.0,2410.6,0.2072]
[1750868083204,6.992,2411.1,2411.0,4.14757034]
[1750868083205,1.888,2411.1,2411.0,4.14757034]
[1750868083415,1.888,2411.1,2411.0,5.60420024]
[1750868085484,1.888,2411.1,2411.0,0.9066299]
[1750868085695,1.888,2411.1,2410.9,0.2072]
[1750868086085,6.03559492,2411.1,2410.6,4.14831047]
[1750868086407,0.2072,2411.0,2410.7,0.55]
[1750868088492,0.2072,2411.0,2410.6,4.35547216]
[1750868088493,0.2072,2411.0,2410.6,0.2072]
[1750868088709,0.2072,2410.8,2410.5,0.55]
[1750868089018,0.2072,2410.8,2410.5,4.69850947]
[1750868089322,0.2072,2410.8,2410.5,5.19028117]
[1750868091934,0.2072,2410.8,2410.6,4.14830562]
[1750868092133,0.2072,2410.8,2410.7,4.14817272]
[1750868092607,0.2072,2410.8,2410.6,4.14827874]
[1750868095831,0.2072,2410.8,2410.7,4.14817272]
[1750868096214,0.2072,2410.8,2410.7,5.21716716]
[1750868096427,1.888,2411.1,2411.0,4.14765657]
[1750868097142,1.888,2411.1,2411.0,4.69765657]
[1750868097315,1.888,2411.1,2411.0,5.66645657]
[1750868097649,2.0952,2411.5,2411.1,0.55]
[1750868097829,2.0952,2411.5,2411.3,4.14704078]
[1750868098342,2.0952,2411.5,2411.4,4.14696856]
[1750868098554,1.888,2411.5,2411.4,4.14696856]
[1750868099334,1.888,2411.5,2411.3,4.14704078]
[1750868099335,1.888,2411.5,2411.3,4.6970839]
[1750868100244,0.2072,2411.7,2411.3,4.6970839]
[1750868100445,1.888,2411.9,2411.6,4.14662464]
[1750868100611,0.2072,2411.8,2411.5,4.69664679]
[1750868100815,0.2072,2411.8,2411.5,0.55]
[1750868101374,0.2072,2411.8,2411.5,4.69677661]
[1750868102047,0.2072,2411.8,2411.6,4.1465368]
[1750868102452,0.2072,2411.8,2411.6,0.98480134]
[1750868102639,1.888,2411.9,2411.6,5.13139197]
[1750868103132,1.888,2411.9,2411.7,4.14643147]
[1750868103336,1.888,2411.9,2411.6,0.98480134]
[1750868103911,1.888,2411.9,2411.5,4.90390343]
[1750868104111,1.888,2412.5,2411.9,1.3337]
[1750868104354,1.888,2412.5,2411.9,1.5409]
[1750868104646,1.888,2412.5,2412.4,4.14524954]
[1750868105414,0.818,2412.8,2412.5,4.14507772]
[1750868105617,2.0872,2412.8,2412.5,4.69507772]
[1750868105948,2.0872,2413.1,2412.9,4.14430149]
[1750868106124,2.0872,2413.1,2412.8,0.7682]
[1750868106947,6.2312776,2413.1,2412.8,0.7682]
[1750868107450,4.14551655,2412.3,2412.1,0.7682]
[1750868107640,4.14537372,2412.4,2412.1,0.7682]
[1750868107837,4.14543245,2412.3,2412.1,0.9754]
[1750868108038,4.14622123,2411.9,2411.6,0.7682]
[1750868108356,4.14622123,2411.9,2411.4,0.7682]
[1750868108357,4.14670579,2411.6,2411.4,0.7682]
[1750868108522,4.14655485,2411.7,2411.4,0.7682]
[1750868109052,4.35360523,2411.8,2411.4,0.7682]
[1750868109256,0.2072,2411.8,2411.4,0.7682]
[1750868109558,4.35356337,2411.8,2411.4,0.7682]
[1750868110326,4.1464625,2411.7,2411.4,0.7682]
[1750868110629,4.1464625,2411.7,2411.4,0.55]
[1750868110847,0.2072,2411.8,2411.4,0.55]
[1750868110848,4.35356325,2411.8,2411.4,0.55]
[1750868111157,0.2072,2411.8,2411.3,0.2072]
[1750868111317,0.8237,2411.8,2411.5,0.34616736]
[1750868111629,0.8237,2411.8,2410.8,0.7939]
[1750868111630,4.14726793,2411.3,2410.8,0.7939]
[1750868111824,4.35446793,2411.3,2410.8,1.0011]
[1750868112029,0.2072,2411.3,2410.9,4.14779791]
[1750868112252,0.2072,2411.3,2410.9,0.55]
[1750868112253,4.35434744,2411.3,2410.9,0.55]
[1750868112458,0.2072,2411.3,2410.9,0.55]
[1750868112751,2.0872,2411.5,2411.2,0.55]
[1750868112918,2.0872,2411.5,2411.2,4.91412194]
[1750868113645,1.88,2411.5,2411.3,4.69701226]
[1750868113817,1.88,2411.5,2411.4,4.14696856]
[1750868114016,0.2072,2411.7,2411.3,4.90425602]
[1750868114329,4.35372476,2411.7,2411.3,0.2072]
[1750868115642,4.94944462,2411.6,2411.0,11.3109]
[1750868115943,0.2072,2411.4,2411.3,0.55]
[1750868116147,0.2072,2411.7,2411.3,0.7572]
[1750868116347,4.35367968,2411.7,2411.3,0.7572]
[1750868116753,0.2072,2411.7,2411.3,4.9043059]
[1750868116959,4.35366681,2411.7,2411.3,0.7572]
[1750868117545,4.14663711,2411.6,2411.3,0.2072]
[1750868117766,4.35373589,2411.7,2411.3,0.2072]
[1750868118040,0.2072,2411.7,2411.3,4.35433531]
[1750868118783,0.2072,2411.7,2411.3,4.35433742]
[1750868118989,0.2072,2411.7,2411.3,5.25951483]
[1750868119716,4.35366802,2411.7,2411.3,5.25951483]
[1750868120087,0.2072,2411.7,2411.3,5.25951483]
[1750868120612,8.855,2411.9,2411.5,4.92021123]
[1750868120882,4.14628428,2411.8,2411.5,0.9807]
[1750868121082,13.20835727,2411.9,2411.5,0.9807]
[1750868121456,4.14628526,2411.8,2411.5,0.9807]
[1750868121949,9.0622,2411.9,2411.6,4.14658878]
[1750868122148,9.0622,2411.9,2411.5,0.9807]
[1750868122385,1.88,2411.9,2411.6,0.7572]
[1750868122585,1.88,2411.9,2411.6,4.90370819]
[1750868122785,1.88,2411.9,2411.5,0.7735]
[1750868122988,7.83596443,2411.9,2411.5,0.2072]
[1750868123185,4.14642273,2411.8,2411.5,0.2072]
[1750868123555,7.83600008,2411.9,2411.5,0.2072]
[1750868123754,6.23340301,2411.9,2411.5,4.35397632]
[1750868124055,2.0872,2411.9,2411.5,4.35397632]
[1750868124375,7.8028,2412.2,2411.8,0.55]
[1750868124376,0.2072,2412.2,2411.8,0.55]
[1750868124694,6.23263198,2412.3,2411.9,0.2072]
[1750868124907,2.0872,2412.3,2411.9,4.35327801]
[1750868125107,6.23263141,2412.3,2411.9,4.35327801]
[1750868125403,6.23263141,2412.3,2411.9,0.2072]
[1750868125768,4.14559634,2412.2,2411.9,0.2072]
[1750868126500,2.0872,2412.3,2411.9,0.2072]
[1750868126705,4.35323504,2412.0,2411.7,0.7822]
[1750868126864,4.14612583,2411.9,2411.6,0.2072]
[1750868127062,0.2072,2412.0,2411.6,4.35371604]
[1750868127295,0.2072,2412.0,2411.7,4.14644057]
[1750868127672,0.2072,2412.0,2411.6,4.35372685]
[1750868127992,0.2072,2412.0,2411.7,4.14644209]
[1750868129170,0.2072,2412.0,2411.6,5.34196282]
[1750868129677,4.35321349,2412.0,2411.6,1.19541947]
[1750868129998,4.35321349,2412.0,2411.6,0.2072]
[1750868129999,0.2072,2412.0,2411.6,0.2072]
[1750868130192,0.2072,2412.0,2411.6,4.35372976]
[1750868130496,4.35316657,2412.0,2411.6,0.2072]
[1750868130693,5.13843166,2412.0,2411.6,0.2072]
[1750868130891,0.9924,2412.0,2411.6,4.35374366]
[1750868131094,4.14629863,2411.8,2411.3,4.14703943]
[1750868131394,0.2072,2411.7,2411.3,4.35423943]
[1750868131603,4.35366453,2411.7,2411.3,0.2072]
[1750868131772,0.2072,2411.7,2411.3,4.35433145]
[1750868131972,0.2072,2411.7,2411.3,0.2072]
[1750868132571,4.14673281,2411.6,2411.3,0.2072]
[1750868132770,0.2072,2411.7,2411.3,4.35424607]
[1750868132970,0.2072,2411.7,2411.3,0.69762461]
[1750868133182,0.2072,2411.7,2411.4,4.14695235]
[1750868133388,0.2072,2411.7,2411.4,1.3334]
[1750868133701,9.6485,2412.2,2411.7,0.55]
[1750868133999,10.2072,2412.2,2411.8,4.14626921]
[1750868134199,1.879,2412.1,2411.9,4.14606148]
[1750868134401,1.879,2412.1,2412.0,4.14593698]
[1750868134604,0.2072,2412.3,2412.2,4.14559323]
[1750868134898,2.0862,2412.5,2412.3,4.14542138]
[1750868135574,2.0862,2412.5,2412.3,4.14526869]
[1750868135788,2.0862,2412.5,2412.1,0.55]
[1750868135789,2.0862,2412.5,2412.2,0.8174]
[1750868136079,1.879,2412.5,2412.4,4.14524954]
[1750868136277,10.776,2413.3,2412.7,4.14464411]
[1750868136278,0.2072,2412.8,2412.7,4.14464411]
[1750868136502,0.2072,2412.8,2412.7,4.93564411]
[1750868136672,0.2072,2413.0,2412.9,4.14435744]
[1750868137068,1.872,2413.1,2412.8,4.69453313]
[1750868137273,1.872,2413.1,2412.8,0.55]
[1750868138175,1.872,2413.1,2412.8,4.694553]
[1750868138596,1.872,2413.1,2412.8,5.67831364]
[1750868138799,1.872,2413.1,2413.0,4.14421881]
[1750868139171,0.2064,2413.2,2413.1,4.14404707]
[1750868139377,0.2064,2413.2,2413.0,4.14414702]
[1750868139598,0.2064,2413.2,2412.9,4.14422026]
[1750868140075,4.14293572,2413.8,2413.3,4.14366272]
[1750868140280,0.2064,2413.5,2413.3,4.14355965]
[1750868140490,0.2064,2413.5,2413.4,4.14353194]
[1750868141985,0.2064,2413.5,2413.4,0.55]
[1750868142190,0.2064,2413.8,2413.4,0.7564]
[1750868142581,0.2064,2413.8,2413.5,4.14329343]
[1750868142877,1.872,2414.0,2413.6,5.50810546]
[1750868143071,2.0784,2414.0,2413.6,1.365]
[1750868143519,2.0784,2414.0,2413.6,5.50810226]
[1750868143690,2.0784,2414.0,2413.8,4.14283877]
[1750868144091,2.0784,2414.0,2413.6,1.365]
[1750868144394,2.0784,2414.0,2413.6,1.98546253]
[1750868144599,2.0784,2414.0,2413.6,5.50807307]
[1750868144797,2.0784,2414.0,2413.7,4.14295869]
[1750868145003,2.0784,2414.0,2413.6,5.5081004]
[1750868145311,4.14269573,2413.9,2413.6,0.55]
[1750868145507,6.22093013,2414.0,2413.6,0.55]
[1750868145700,2.0784,2414.0,2413.6,0.55]
[1750868145900,2.0784,2414.0,2413.6,4.69318406]
[1750868146109,6.22090348,2414.0,2413.6,1.53661093]
[1750868146286,2.0784,2414.0,2413.6,5.67979351]
[1750868147004,4.14277195,2413.9,2413.8,0.003183]
[1750868147402,6.01451254,2414.0,2413.8,0.003183]
[1750868148219,6.01458887,2414.0,2413.8,0.003183]
[1750868148425,1.872,2414.0,2413.8,0.003183]
[1750868148593,6.01451429,2414.0,2413.8,0.003183]
[1750868148794,1.872,2414.0,2413.8,0.003183]
[1750868149108,2.0784,2414.0,2413.8,0.003183]
[1750868149712,6.22090748,2414.0,2413.8,0.003183]
[1750868149990,0.2064,2414.0,2413.8,0.003183]
[1750868150624,0.2064,2414.0,2413.8,4.69585853]
[1750868150791,10.774,2414.2,2413.9,0.88388619]
[1750868150989,10.774,2414.2,2413.9,1.09028619]
[1750868151504,4.14233883,2414.1,2413.6,4.95012557]
[1750868151820,10.774,2414.2,2413.7,4.89937396]
[1750868151821,15.12264826,2414.2,2413.7,4.89937396]
[1750868152026,10.9804,2414.2,2413.9,4.14267058]
[1750868152191,10.9804,2414.2,2413.9,4.14251235]
[1750868152394,0.7679,2414.6,2414.0,4.9083117]
[1750868152700,12.96972093,2414.5,2414.1,0.7564]
[1750868153119,8.828,2414.5,2414.1,4.89864174]
[1750868153833,8.828,2414.5,2414.1,0.7564]
[1750868153998,8.828,2414.5,2414.1,0.2064]
[1750868154202,0.2064,2414.3,2413.9,0.2064]
[1750868154498,0.2064,2414.3,2413.9,0.77292119]
[1750868154696,4.34841257,2414.3,2413.9,0.77292119]
[1750868154900,0.2064,2414.3,2414.0,4.14241387]
[1750868155607,0.2064,2414.3,2414.1,4.14218475]
[1750868155810,0.2064,2414.3,2414.0,4.14238973]
[1750868156205,4.34841918,2414.3,2413.9,0.2064]
[1750868156799,4.14216518,2414.2,2413.9,0.2064]
[1750868157140,4.34847604,2414.3,2413.9,0.2064]
[1750868157299,0.2064,2414.3,2413.9,4.91558261]
[1750868157501,0.2064,2414.3,2414.0,4.14247411]
[1750868157702,0.2064,2414.3,2414.1,4.14231298]
[1750868157935,6.954,2414.6,2414.3,4.14190772]
[1750868158112,4.35733606,2414.9,2414.4,4.14180382]
[1750868158433,4.96725425,2415.1,2414.4,4.14180382]
[1750868158434,0.2064,2415.1,2414.8,0.7569]
[1750868158598,0.2064,2415.1,2414.8,4.8980297]
[1750868158795,0.2064,2415.1,2414.6,10.0]
[1750868159017,0.2064,2415.1,2414.7,0.55]
[1750868159229,0.2064,2415.1,2414.7,5.25675051]
[1750868159435,0.2064,2415.1,2414.5,4.14156458]